lending/lending_fUSD_20251016
["ID","MTS","AMOUNT","RATE_DAILY","PERIOD"]
[391527666,1760632242830,-500.0,0.00021915,2]
[391527668,1760632242840,-500.0,0.00021915,2]
[391527670,1760632242851,-274.95,0.00021915,2]
[391527672,1760632242861,-151.75,0.00021916,2]
[391527675,1760632242870,-152.96,0.00021916,2]
[391527678,1760632242880,-150.39,0.00021916,2]
[391527680,1760632242890,-300.09,0.00021916,2]
[391527682,1760632242899,-152.4,0.00021916,2]
[391527684,1760632242908,-300.48,0.00021916,2]
[391527686,1760632242918,-152.16,0.00021916,2]
[391527689,1760632242928,-150.49,0.00021916,2]
[391527691,1760632242937,-151.52,0.00021916,2]
[391527694,1760632242946,-152.83,0.00021916,2]
[391527697,1760632242956,-303.58,0.00021916,2]
[391527700,1760632242966,-152.55,0.00021916,2]
[391527702,1760632242976,-150.42,0.00021916,2]
[391527704,1760632242987,-152.75,0.00021916,2]
[391527706,1760632242998,-427368.55611943,0.00021916,2]
[391527708,1760632243010,-735.18,0.00021916,2]
[391527710,1760632243020,-45892.2385814,0.00021916,2]
[391527713,1760632243032,-434.4844535,0.00021916,2]
[391527716,1760632243044,-1191.5506169,0.00021916,2]
[391527720,1760632243062,-151.0,0.00021916,2]
[391527723,1760632243077,-151.0,0.00021916,2]
[391527725,1760632243089,-1233.0,0.00021916,2]
[391527727,1760632243100,-1233.0,0.00021916,2]
[391527729,1760632243110,-1233.0,0.00021916,2]
[391527731,1760632243120,-151.0,0.00021916,2]
[391527733,1760632243131,-151.0,0.00021916,2]
[391527735,1760632243140,-151.0,0.00021916,2]
[391527737,1760632243150,-151.0,0.00021916,2]
[391527739,1760632243160,-151.0,0.00021916,2]
[391527741,1760632243170,-153.38376913,0.00021916,2]
[391527743,1760632243180,-151.0,0.00021916,2]
[391527745,1760632243189,-151.0,0.00021916,2]
[391527747,1760632243198,-151.0,0.00021916,2]
[391527749,1760632243208,-151.0,0.00021916,2]
[391527751,1760632243218,-1233.0,0.00021916,2]
[391527753,1760632243228,-1233.0,0.00021916,2]
[391527755,1760632243239,-1233.0,0.00021916,2]
[391527757,1760632243249,-151.0,0.00021916,2]
[391527759,1760632243258,-1233.0,0.00021916,2]
[391527761,1760632243268,-151.0,0.00021916,2]
[391527763,1760632243278,-1233.0,0.00021916,2]
[391527765,1760632243288,-151.0,0.00021916,2]
[391527767,1760632243298,-151.0,0.00021916,2]
[391527769,1760632243308,-151.0,0.00021916,2]
[391527771,1760632243318,-1233.0,0.00021916,2]
[391527773,1760632243331,-151.0,0.00021916,2]
[391527775,1760632243341,-1233.0,0.00021916,2]
[391527777,1760632243350,-151.0,0.00021916,2]
[391527779,1760632243360,-151.0,0.00021916,2]
[391527781,1760632243369,-1233.0,0.00021916,2]
[391527783,1760632243379,-1233.0,0.00021916,2]
[391527785,1760632243389,-151.0,0.00021916,2]
[391527787,1760632243399,-1233.0,0.00021916,2]
[391527789,1760632243408,-1233.0,0.00021916,2]
[391527791,1760632243418,-151.0,0.00021916,2]
[391527793,1760632243428,-1233.0,0.00021916,2]
[391527795,1760632243439,-151.0,0.00021916,2]
[391527797,1760632243449,-1233.0,0.00021916,2]
[391527799,1760632243459,-1233.0,0.00021916,2]
[391527801,1760632243469,-1233.0,0.00021916,2]
[391527803,1760632243479,-1233.0,0.00021916,2]
[391527805,1760632243488,-1233.0,0.00021916,2]
[391527807,1760632243498,-1233.0,0.00021916,2]
[391527809,1760632243508,-1233.0,0.00021916,2]
[391527811,1760632243523,-1233.0,0.00021916,2]
[391527813,1760632243533,-1233.0,0.00021916,2]
[391527815,1760632243544,-1233.0,0.00021916,2]
[391527817,1760632243553,-1233.0,0.00021916,2]
[391527819,1760632243563,-1233.0,0.00021916,2]
[391527821,1760632243577,-151.0,0.00021916,2]
[391527823,1760632243587,-1233.0,0.00021916,2]
[391527825,1760632243597,-1233.0,0.00021916,2]
[391527827,1760632243606,-1233.0,0.00021916,2]
[391527829,1760632243616,-151.0,0.00021916,2]
[391527831,1760632243626,-151.0,0.00021916,2]
[391527833,1760632243635,-153.18084896,0.00021916,2]
[391527835,1760632243644,-1233.0,0.00021916,2]
[391527837,1760632243654,-1233.0,0.00021916,2]
[391527839,1760632243664,-1233.0,0.00021916,2]
[391527841,1760632243675,-1233.0,0.00021916,2]
[391527843,1760632243684,-1233.0,0.00021916,2]
[391527845,1760632243693,-1233.0,0.00021916,2]
[391527847,1760632243703,-1233.0,0.00021916,2]
[391527849,1760632243713,-1233.0,0.00021916,2]
[391527851,1760632243723,-1233.0,0.00021916,2]
[391527853,1760632243733,-1250.90925025,0.00021916,2]
[391527855,1760632243743,-151.0,0.00021916,7]
[391527857,1760632243754,-151.0,0.00021916,7]
[391527859,1760632243765,-151.0,0.00021916,7]
[391527861,1760632243776,-151.0,0.00021916,7]
[391527863,1760632243786,-151.00000014,0.00021916,7]
[391527865,1760632243799,-361.25137617,0.00021916,2]
[391527867,1760632243809,-151.0,0.00021916,7]
[391527869,1760632243823,-168.780683,0.00021916,7]
[391527871,1760632243833,-151.0,0.00021916,7]
[391527873,1760632243843,-151.0,0.00021916,7]
[391527875,1760632243852,-274.82663,0.00021916,7]
[391527877,1760632243863,-151.0,0.00021916,7]
[391527879,1760632243875,-151.0,0.00021916,7]
[391527881,1760632243886,-151.0,0.00021916,7]
[391527884,1760632243896,-170.945219,0.00021916,7]
[391527886,1760632243907,-645.084453,0.00021916,7]
[391527887,1760632243917,-151.0,0.00021916,7]
[391527888,1760632243927,-645.084453,0.00021916,7]
[391527890,1760632243938,-269.965274,0.00021916,7]
[391527892,1760632243948,-151.0,0.00021916,7]
[391527894,1760632243958,-645.084453,0.00021916,7]
[391527896,1760632243968,-269.965274,0.00021916,7]
[391527898,1760632243978,-645.084453,0.00021916,7]
[391527900,1760632243989,-269.965274,0.00021916,7]
[391527902,1760632244000,-269.965274,0.00021916,7]
[391527904,1760632244011,-16871.8699906,0.00021916,2]
[391527905,1760632244021,-151.0,0.00021916,7]
[391527906,1760632244031,-151.0,0.00021916,7]
[391527907,1760632244041,-151.605828,0.00021916,7]
[391527909,1760632244050,-151.605828,0.00021916,7]
[391527911,1760632244059,-151.605828,0.00021916,7]
[391527913,1760632244072,-151.605828,0.00021916,7]
[391527914,1760632244081,-151.605828,0.00021916,7]
[391527916,1760632244090,-151.605828,0.00021916,7]
[391527918,1760632244099,-151.0,0.00021916,7]
[391527920,1760632244109,-151.605828,0.00021916,7]
[391527922,1760632244118,-151.0,0.00021916,7]
[391527925,1760632244131,-151.605828,0.00021916,7]
[391527927,1760632244140,-151.0,0.00021916,7]
[391527929,1760632244149,-265.68702,0.00021916,7]
[391527930,1760632244158,-151.0,0.00021916,7]
[391527932,1760632244168,-340.047682,0.00021916,7]
[391527934,1760632244177,-340.047682,0.00021916,7]
[391527936,1760632244187,-340.047682,0.00021916,7]
[391527937,1760632244196,-340.047682,0.00021916,7]
[391527938,1760632244218,-340.047682,0.00021916,7]
[391527939,1760632244227,-340.047682,0.00021916,7]
[391527940,1760632244237,-340.047682,0.00021916,7]
[391527941,1760632244247,-340.047682,0.00021916,7]
[391527942,1760632244257,-151.0,0.00021916,7]
[391527943,1760632244267,-151.0,0.00021916,7]
[391527944,1760632244277,-3396.0,0.00021917,2]
[391527945,1760632244287,-500.0,0.00021917,2]
[391527946,1760632244296,-2938.13,0.00021917,2]
[391527947,1760632244306,-500.0,0.00021917,2]
[391527948,1760632244316,-500.0,0.00021917,2]
[391527949,1760632244331,-538.35508747,0.00021917,2]
[391527950,1760632244341,-622.72,0.00021917,2]
[391527951,1760632244351,-500.0,0.00021917,2]
[391527952,1760632244361,-151.0,0.00021917,7]
[391527953,1760632244370,-151.0,0.00021917,7]
[391527955,1760632244379,-151.0,0.00021917,7]
[391527957,1760632244389,-151.0,0.00021917,7]
[391527959,1760632244399,-151.0,0.00021917,7]
[391527961,1760632244410,-151.0,0.00021917,7]
[391527962,1760632244420,-151.0,0.00021917,7]
[391527963,1760632244429,-151.0,0.00021917,7]
[391527964,1760632244439,-151.0,0.00021917,7]
[391527965,1760632244449,-151.0,0.00021917,7]
[391527966,1760632244460,-151.0,0.00021917,7]
[391527967,1760632244469,-151.0,0.00021917,7]
[391527968,1760632244480,-151.0,0.00021917,7]
[391527969,1760632244490,-151.0,0.00021917,7]
[391527970,1760632244499,-151.0,0.00021917,7]
[391527971,1760632244508,-151.0,0.00021917,7]
[391527972,1760632244522,-151.0,0.00021917,7]
[391527973,1760632244532,-152.549496,0.00021917,7]
[391527974,1760632244541,-151.0,0.00021917,7]
[391527975,1760632244551,-151.0,0.00021917,7]
[391527977,1760632244562,-151.0,0.00021917,7]
[391527979,1760632244575,-151.0,0.00021917,7]
[391527981,1760632244584,-151.0,0.00021917,7]
[391527982,1760632244594,-151.0,0.00021917,7]
[391527983,1760632244603,-151.0,0.00021917,7]
[391527984,1760632244612,-151.0,0.00021917,7]
[391527985,1760632244622,-461.901189,0.00021917,7]
[391527986,1760632244631,-151.0,0.00021917,7]
[391527987,1760632244640,-274.223923,0.00021917,7]
[391527988,1760632244649,-151.0,0.00021917,7]
[391527989,1760632244659,-151.0,0.00021917,7]
[391527990,1760632244669,-151.0,0.00021917,7]
[391527991,1760632244678,-286.94029,0.00021917,7]
[391527992,1760632244687,-151.0,0.00021917,7]
[391527993,1760632244697,-151.0,0.00021917,7]
[391527994,1760632244706,-151.0,0.00021917,7]
[391527995,1760632244716,-500.0,0.00021917,2]
[391527996,1760632244726,-500.0,0.00021917,2]
[391527997,1760632244736,-500.0,0.00021917,2]
[391527998,1760632244745,-500.0,0.00021917,2]
[391527999,1760632244755,-500.0,0.00021917,2]
[391528000,1760632244764,-500.0,0.00021917,2]
[391528001,1760632244773,-480.07255474,0.00021917,2]
[391528002,1760632244784,-391.577634,0.00021917,7]
[391528003,1760632244793,-391.577634,0.00021917,7]
[391528004,1760632244802,-391.577634,0.00021917,7]
[391528005,1760632244811,-391.577634,0.00021917,7]
[391528006,1760632244823,-151.0,0.00021917,7]
[391528007,1760632244833,-151.0,0.00021917,7]
[391528008,1760632244842,-151.0,0.00021917,7]
[391528009,1760632244851,-151.0,0.00021917,7]
[391528010,1760632244861,-1000.0,0.00021917,2]
[391528011,1760632244870,-1000.0,0.00021917,2]
[391528012,1760632244880,-1000.0,0.00021917,2]
[391528013,1760632244890,-1000.0,0.00021917,2]
[391528014,1760632244900,-1000.0,0.00021917,2]
[391528015,1760632244909,-1000.0,0.00021917,2]
[391528016,1760632244919,-1000.0,0.00021917,2]
[391528017,1760632244928,-1000.0,0.00021917,2]
[391528018,1760632244937,-347.1156745,0.00021917,2]
[391528019,1760632244946,-151.0,0.00021917,7]
[391528020,1760632244956,-151.0,0.00021917,7]
[391528021,1760632244966,-151.0,0.00021917,7]
[391528022,1760632244977,-151.0,0.00021917,7]
[391528023,1760632244987,-177.828552,0.00021917,7]
[391528024,1760632244997,-177.828552,0.00021917,7]
[391528025,1760632245007,-177.828552,0.00021917,7]
[391528026,1760632245017,-177.828552,0.00021917,7]
[391528027,1760632245026,-9417.91,0.00021917,2]
[391528028,1760632245036,-9417.91,0.00021917,2]
[391528029,1760632245046,-9417.91,0.00021917,2]
[391528030,1760632245055,-9417.91,0.00021917,2]
[391528031,1760632245066,-9417.91,0.00021917,2]
[391528032,1760632245080,-152.313409,0.00021917,7]
[391528033,1760632245090,-9417.91,0.00021917,2]
[391528034,1760632245100,-9417.91,0.00021917,2]
[391528035,1760632245110,-9417.91,0.00021917,2]
[391528036,1760632245120,-9417.91,0.00021917,2]
[391528038,1760632245130,-9417.91,0.00021917,2]
[391528040,1760632245140,-9417.91,0.00021917,2]
[391528041,1760632245150,-9417.91,0.00021917,2]
[391528042,1760632245160,-9417.91,0.00021917,2]
[391528043,1760632245172,-9417.91,0.00021917,2]
[391528044,1760632245182,-9417.91,0.00021917,2]
[391528045,1760632245192,-9417.91,0.00021917,2]
[391528046,1760632245202,-9417.91,0.00021917,2]
[391528047,1760632245212,-9417.91,0.00021917,2]
[391528048,1760632245222,-151.0,0.00021917,7]
[391528049,1760632245232,-9417.91,0.00021917,2]
[391528050,1760632245241,-9417.91,0.00021917,2]
[391528051,1760632245250,-9417.91,0.00021917,2]
[391528052,1760632245261,-9417.91,0.00021917,2]
[391528053,1760632245271,-9417.91,0.00021917,2]
[391528054,1760632245280,-9418.0628773,0.00021917,2]
[391528055,1760632245290,-151.0,0.00021917,7]
[391528056,1760632245300,-151.0,0.00021917,7]
[391528057,1760632245309,-151.0,0.00021917,7]
[391528058,1760632245319,-151.0,0.00021917,7]
[391528059,1760632245335,-151.0,0.00021917,7]
[391528060,1760632245344,-151.0,0.00021917,7]
[391528061,1760632245355,-151.0,0.00021917,7]
[391528062,1760632245366,-151.0,0.00021917,7]
[391528063,1760632245375,-151.0,0.00021917,7]
[391528064,1760632245386,-645.084453,0.00021917,7]
[391528065,1760632245397,-151.0,0.00021917,7]
[391528066,1760632245408,-645.084453,0.00021917,7]
[391528067,1760632245419,-269.965274,0.00021917,7]
[391528068,1760632245429,-151.0,0.00021917,7]
[391528069,1760632245441,-645.084453,0.00021917,7]
[391528070,1760632245451,-269.965274,0.00021917,7]
[391528071,1760632245461,-645.084453,0.00021917,7]
[391528072,1760632245471,-269.965274,0.00021917,7]
[391528073,1760632245482,-269.965274,0.00021917,7]
[391528074,1760632245493,-151.0,0.00021917,7]
[391528075,1760632245503,-151.605828,0.00021917,7]
[391528076,1760632245515,-151.605828,0.00021917,7]
[391528077,1760632245525,-151.605828,0.00021917,7]
[391528078,1760632245536,-151.0,0.00021917,7]
[391528079,1760632245547,-151.605828,0.00021917,7]
[391528080,1760632245556,-177.932608,0.00021917,7]
[391528081,1760632245566,-340.047682,0.00021917,7]
[391528082,1760632245582,-340.047682,0.00021917,7]
[391528083,1760632245591,-340.047682,0.00021917,7]
[391528084,1760632245601,-340.047682,0.00021917,7]
[391528085,1760632245611,-5000.0,0.00021918,2]
[391528086,1760632245620,-151.0,0.00021918,7]
[391528087,1760632245630,-151.0,0.00021918,7]
[391528088,1760632245640,-600.0,0.00021918,2]
[391528089,1760632245649,-150.0,0.00021918,2]
[391528090,1760632245658,-150.0,0.00021918,2]
[391528091,1760632245668,-546.64,0.00021919,2]
[391528092,1760632245677,-500.0,0.00021919,2]
[391528093,1760632245687,-500.0,0.00021919,2]
[391528094,1760632245697,-168.0,0.00021928,2]
[391528095,1760632245706,-1294.03206229,0.0002196,2]
[391528096,1760632245716,-1769.0,0.00021968,2]
[391528097,1760632245726,-500.0,0.00021973,2]
[391528098,1760632245737,-500.0,0.00021973,2]
[391528099,1760632245746,-500.0,0.00021973,2]
[391528100,1760632245757,-500.0,0.00021973,2]
[391528101,1760632245766,-150.0,0.00021973,2]
[391528102,1760632245775,-256.37947228,0.0002199,2]
[391528103,1760632245785,-3060.25604508,0.0002199,2]
[391528104,1760632245794,-708.12,0.00021998,2]
[391528105,1760632245804,-500.0,0.00021998,2]
[391528106,1760632245814,-500.0,0.00021998,2]
[391528107,1760632245828,-500.0,0.00021998,2]
[391528108,1760632245838,-500.0,0.00021998,2]
[391528109,1760632245847,-546.64,0.00021999,2]
[391528110,1760632245857,-546.64,0.00021999,2]
[391528112,1760632245867,-546.64,0.00021999,2]
[391528113,1760632245876,-546.64,0.00021999,2]
[391528114,1760632245885,-546.86528649,0.00021999,2]
[391528115,1760632245895,-500.0,0.00021999,2]
[391528116,1760632245904,-500.0,0.00021999,2]
[391528117,1760632245915,-500.0,0.00021999,2]
[391528118,1760632245925,-500.0,0.00021999,2]
[391528119,1760632245936,-500.0,0.00021999,2]
[391528120,1760632245946,-500.0,0.00021999,2]
[391528121,1760632245956,-500.0,0.00021999,2]
[391528122,1760632245965,-500.0,0.00021999,2]
[391528123,1760632245975,-500.0,0.00021999,2]
[391528124,1760632245985,-500.0,0.00021999,2]
[391528125,1760632245995,-2938.13,0.00021999,2]
[391528126,1760632246004,-500.0,0.00021999,2]
[391528127,1760632246014,-708.12,0.00021999,2]
[391528128,1760632246024,-545.36516475,0.00021999,2]
[391528129,1760632246034,-500.0,0.00021999,2]
[391528130,1760632246043,-500.0,0.00021999,2]
[391528131,1760632246053,-500.0,0.00021999,2]
[391528132,1760632246062,-500.0,0.00021999,2]
[391528133,1760632246077,-500.0,0.00021999,2]
[391528134,1760632246087,-500.0,0.00021999,2]
[391528136,1760632246096,-500.0,0.00021999,2]
[391528137,1760632246105,-500.0,0.00021999,2]
[391528138,1760632246115,-500.0,0.00021999,2]
[391528139,1760632246124,-500.0,0.00021999,2]
[391528140,1760632246135,-232.65,0.00021999,2]
[391528141,1760632246145,-500.0,0.00021999,2]
[391528142,1760632246154,-500.0,0.00021999,2]
[391528143,1760632246164,-402.08,0.00021999,2]
[391528144,1760632246174,-500.0,0.00021999,2]
[391528145,1760632246184,-500.0,0.00021999,2]
[391528146,1760632246195,-500.0,0.00021999,2]
[391528147,1760632246205,-500.0,0.00021999,2]
[391528148,1760632246215,-500.0,0.00021999,2]
[391528149,1760632246225,-500.0,0.00021999,2]
[391528150,1760632246236,-500.0,0.00021999,2]
[391528151,1760632246245,-465.3,0.00021999,2]
[391528152,1760632246256,-500.0,0.00021999,2]
[391528153,1760632246267,-500.0,0.00021999,2]
[391528154,1760632246278,-500.0,0.00021999,2]
[391528155,1760632246288,-500.0,0.00021999,2]
[391528156,1760632246298,-500.0,0.00021999,2]
[391528157,1760632246307,-500.0,0.00021999,2]
[391528158,1760632246318,-500.0,0.00021999,2]
[391528159,1760632246334,-500.0,0.00021999,2]
[391528160,1760632246345,-500.0,0.00021999,2]
[391528161,1760632246355,-500.0,0.00021999,2]
[391528162,1760632246367,-500.0,0.00021999,2]
[391528163,1760632246376,-500.0,0.00021999,2]
[391528164,1760632246387,-500.0,0.00021999,2]
[391528165,1760632246397,-500.0,0.00021999,2]
[391528166,1760632246409,-500.0,0.00021999,2]
[391528167,1760632246418,-500.0,0.00021999,2]
[391528168,1760632246428,-500.0,0.00021999,2]
[391528169,1760632246437,-500.0,0.00021999,2]
[391528170,1760632246447,-500.0,0.00021999,2]
[391528171,1760632246456,-500.0,0.00021999,2]
[391528172,1760632246466,-500.0,0.00021999,2]
[391528173,1760632246476,-500.0,0.00021999,2]
[391528174,1760632246486,-500.0,0.00021999,2]
[391528175,1760632246495,-1140.45,0.00021999,2]
[391528176,1760632246505,-500.0,0.00021999,2]
[391528177,1760632246517,-735.18,0.00021999,2]
[391528178,1760632246530,-2502.7,0.00021999,2]
[391528179,1760632246541,-2502.7,0.00021999,4]
[391528180,1760632246551,-2502.7,0.00021999,6]
[391528181,1760632246564,-2502.7,0.00021999,8]
[391528182,1760632246577,-2502.7,0.00021999,10]
[391528183,1760632246587,-10000.0,0.00021999,2]
[391528184,1760632246597,-151.0,0.00021999,7]
[391528185,1760632246608,-151.0,0.00021999,7]
[391528186,1760632246618,-151.0,0.00021999,7]
[391528187,1760632246889,-151.0,0.00021999,7]
[391528188,1760632246899,-151.0,0.00021999,7]
[391528189,1760632246910,-151.0,0.00021999,7]
[391528190,1760632246920,-151.0,0.00021999,7]
[391528191,1760632246931,-151.0,0.00021999,7]
[391528192,1760632246940,-151.0,0.00021999,7]
[391528193,1760632246950,-151.0,0.00021999,7]
[391528194,1760632246961,-151.0,0.00021999,7]
[391528195,1760632246972,-461.901189,0.00021999,7]
[391528196,1760632246982,-461.901189,0.00021999,7]
[391528197,1760632246993,-151.0,0.00021999,7]
[391528198,1760632247003,-151.0,0.00021999,7]
[391528199,1760632247014,-151.0,0.00021999,7]
[391528200,1760632247024,-151.0,0.00021999,7]
[391528201,1760632247034,-151.0,0.00021999,7]
[391528202,1760632247045,-151.0,0.00021999,7]
[391528203,1760632247055,-151.0,0.00021999,7]
[391528204,1760632247064,-391.577634,0.00021999,7]
[391528205,1760632247076,-391.577634,0.00021999,7]
[391528206,1760632247086,-391.577634,0.00021999,7]
[391528207,1760632247095,-391.577634,0.00021999,7]
[391528208,1760632247105,-151.0,0.00021999,7]
[391528209,1760632247115,-300.0,0.00021999,2]
[391528210,1760632247126,-155.800419,0.00021999,7]
[391528211,1760632247137,-151.0,0.00021999,7]
[391528212,1760632247147,-151.0,0.00021999,7]
[391528213,1760632247157,-151.0,0.00021999,7]
[391528214,1760632247167,-177.828552,0.00021999,7]
[391528215,1760632247177,-177.828552,0.00021999,7]
[391528216,1760632247187,-177.828552,0.00021999,7]
[391528217,1760632247197,-177.828552,0.00021999,7]
[391528218,1760632247207,-151.0,0.00021999,7]
[391528219,1760632247217,-151.0,0.00021999,7]
[391528220,1760632247226,-151.0,0.00021999,7]
[391528221,1760632247237,-151.0,0.00021999,7]
[391528222,1760632247248,-151.0,0.00021999,7]
[391528223,1760632247257,-168.495536,0.00021999,7]
[391528224,1760632247268,-151.0,0.00021999,7]
[391528225,1760632247278,-151.0,0.00021999,7]
[391528226,1760632247288,-264.45151604,0.00021999,7]
[391528227,1760632247297,-645.084453,0.00021999,7]
[391528228,1760632247307,-151.0,0.00021999,7]
[391528229,1760632247317,-645.084453,0.00021999,7]
[391528230,1760632247331,-269.965274,0.00021999,7]
[391528231,1760632247341,-151.0,0.00021999,7]
[391528232,1760632247351,-645.084453,0.00021999,7]
[391528233,1760632247361,-269.965274,0.00021999,7]
[391528234,1760632247371,-645.084453,0.00021999,7]
[391528235,1760632247380,-269.965274,0.00021999,7]
[391528236,1760632247390,-269.965274,0.00021999,7]
[391528237,1760632247401,-268.880816,0.00021999,7]
[391528238,1760632247411,-151.605828,0.00021999,7]
[391528239,1760632247421,-151.605828,0.00021999,7]
[391528240,1760632247432,-151.605828,0.00021999,7]
[391528241,1760632247443,-151.0,0.00021999,7]
[391528242,1760632247453,-151.605828,0.00021999,7]
[391528243,1760632247463,-340.047682,0.00021999,7]
[391528244,1760632247473,-340.047682,0.00021999,7]
[391528245,1760632247483,-340.047682,0.00021999,7]
[391528246,1760632247492,-340.047682,0.00021999,7]
[391528247,1760632247502,-149742.36273704,0.00022,2]
[391528248,1760632248265,-66067.47381336,0.00022,2]
[391528249,1760632248277,-29838.82656983,0.00022,2]
[391528250,1760632248288,-8881.59428922,0.00022,2]
[391528251,1760632248299,-1033.8213078,0.00022,2]
[391528252,1760632248311,-575973.28329789,0.00022,2]
[391528253,1760632248325,-165925.85162479,0.00022,2]
[391528254,1760632248336,-4130.48366994,0.00022,2]
[391528255,1760632248345,-40345.90350773,0.00022,4]
[391528256,1760632248362,-337.374,0.00022,4]
[391528257,1760632248373,-4199.7,0.00022,4]
[391528258,1760632248385,-72140.72777759,0.00022,4]
[391528259,1760632248395,-200.86,0.00022,5]
[391528260,1760632248404,-134459.02501616,0.00022,4]
[391528261,1760632248414,-475.57272817,0.00022,7]
[391528262,1760632248423,-151.0,0.00022,7]
[391528263,1760632248433,-151.0,0.00022,7]
[391528264,1760632248443,-151.0,0.00022,7]
[391528265,1760632248452,-151.0,0.00022,7]
[391528266,1760632248463,-300.0,0.00022,3]
[391528267,1760632248473,-300.0,0.00022,3]
[391528268,1760632248482,-300.0,0.00022,3]
[391528269,1760632248491,-317.335403,0.00022,3]
[391528270,1760632248500,-151.0,0.00022,7]
[391528271,1760632248509,-151.0,0.00022,7]
[391528272,1760632248524,-151.0,0.00022,7]
[391528273,1760632248534,-151.0,0.00022,7]
[391528274,1760632248544,-151.0,0.00022,7]
[391528275,1760632248553,-358297.47907508,0.00022,4]
[391528276,1760632248596,-150.0,0.00021642,2]
[391528277,1760632248606,-200.0,0.00021697,2]
[391528278,1760632248616,-151.0,0.00021916,7]
[391528279,1760632248625,-142.65507974,0.00022,4]
[391528280,1760632248637,-11312.560304,0.00022,4]
[391528281,1760632248649,-4196.94108416,0.00022,4]
[391528282,1760632248660,-9954.62348864,0.00022,4]
[391528283,1760632248671,-3266.3610725,0.00022,4]
[391528284,1760632248914,-151.0,0.00021916,7]
[391528285,1760632248924,-210.97790657,0.00022,4]
[391528286,1760632248936,-629.23643916,0.00022,4]
[391528287,1760632248947,-401794.88355393,0.00022,4]
[391528288,1760632248959,-275.919001,0.00022,4]
[391528289,1760632248972,-418.07765348,0.00022,4]
[391528290,1760632248984,-1081.0,0.00022,4]
[391528291,1760632248998,-151.0,0.00021916,7]
[391528292,1760632249007,-175.631317,0.00022,4]
[391528293,1760632249051,-3532.40970851,0.00022,4]
[391528294,1760632249062,-1325.45,0.00022,4]
[391528295,1760632249076,-38884.76808034,0.00022,4]
[391528296,1760632249087,-254.39513532,0.00022,4]
[391528297,1760632249102,-151.0,0.00021917,7]
[391528298,1760632249111,-5363.79375745,0.00022,4]
[391528299,1760632249227,-151.0,0.00021916,7]
[391528300,1760632249237,-151.0,0.00021916,7]
[391528301,1760632249246,-151.0,0.00021999,7]
[391528302,1760632249255,-935.16873761,0.00022,4]
[391528303,1760632249266,-1638.9,0.00022,4]
[391528304,1760632249278,-1895.77238277,0.00022,4]
[391528305,1760632249289,-6971.0,0.00022,4]
[391528306,1760632249300,-6137.69207264,0.00022,4]
[391528307,1760632249312,-5436.11313086,0.00022,4]
[391528308,1760632249348,-416.77670357,0.00021816,2]
[391528309,1760632249359,-144.78881676,0.00022,4]
[391528310,1760632249371,-55371.23162651,0.00022,4]
[391528311,1760632249402,-4200.0,0.00022,4]
[391528312,1760632249413,-649.12095001,0.00022,4]
[391528313,1760632249424,-620.07656472,0.00022,4]
[391528314,1760632249436,-1137.90589874,0.00022,4]